fUSD/lending_fUSD_20250109
["ID","MTS","AMOUNT","RATE_DAILY","PERIOD"]
[348359469,1736465434217,-588.94,9.84e-05,2]
[348359470,1736465434227,-629.88,9.84e-05,2]
[348359471,1736465434237,-3609.55,9.84e-05,2]
[348359472,1736465434247,-1032.35,9.841e-05,2]
[348359473,1736465434258,-963.65,9.841e-05,2]
[348359474,1736465434267,-502.41064141,9.841e-05,2]
[348359475,1736465434278,-500.0,9.841e-05,2]
[348359476,1736465434288,-571.09,9.841e-05,2]
[348359477,1736465434300,-500.0,9.841e-05,2]
[348359478,1736465434310,-500.0,9.841e-05,2]
[348359479,1736465434320,-500.0,9.841e-05,2]
[348359480,1736465434331,-844.46,9.841e-05,2]
[348359481,1736465434340,-500.0,9.841e-05,2]
[348359482,1736465434350,-500.0,9.841e-05,2]
[348359483,1736465434360,-500.0,9.841e-05,2]
[348359484,1736465434369,-500.0,9.841e-05,2]
[348359485,1736465434379,-500.0,9.841e-05,2]
[348359486,1736465434389,-1075.48,9.841e-05,2]
[348359487,1736465434400,-799.99,9.841e-05,2]
[348359488,1736465434409,-667.41,9.841e-05,2]
[348359489,1736465434419,-921.25,9.841e-05,2]
[348359490,1736465434429,-591.22,9.841e-05,2]
[348359491,1736465434439,-500.0,9.841e-05,2]
[348359492,1736465434449,-500.0,9.841e-05,2]
[348359493,1736465434458,-500.0,9.841e-05,2]
[348359494,1736465434467,-500.0,9.841e-05,2]
[348359495,1736465434477,-500.0,9.841e-05,2]
[348359496,1736465434487,-500.0,9.841e-05,2]
[348359497,1736465434496,-500.0,9.841e-05,2]
[348359498,1736465434506,-616.05,9.841e-05,2]
[348359499,1736465434516,-500.0,9.841e-05,2]
[348359500,1736465434526,-810.09,9.841e-05,2]
[348359501,1736465434535,-500.0,9.841e-05,2]
[348359502,1736465434547,-500.0,9.841e-05,2]
[348359503,1736465434557,-500.0,9.841e-05,2]
[348359504,1736465434566,-901.28,9.841e-05,2]
[348359505,1736465434575,-500.0,9.841e-05,2]
[348359506,1736465434585,-500.0,9.841e-05,2]
[348359507,1736465434594,-717.72,9.841e-05,2]
[348359508,1736465434604,-500.0,9.841e-05,2]
[348359509,1736465434614,-500.0,9.841e-05,2]
[348359510,1736465434624,-500.0,9.841e-05,2]
[348359511,1736465434634,-500.0,9.841e-05,2]
[348359512,1736465434643,-500.0,9.841e-05,2]
[348359513,1736465434654,-500.0,9.841e-05,2]
[348359514,1736465434663,-500.0,9.841e-05,2]
[348359515,1736465434672,-500.0,9.841e-05,2]
[348359516,1736465434682,-500.0,9.841e-05,2]
[348359517,1736465434691,-500.0,9.841e-05,2]
[348359518,1736465434701,-500.0,9.841e-05,2]
[348359519,1736465434710,-500.0,9.841e-05,2]
[348359520,1736465434720,-500.0,9.841e-05,2]
[348359521,1736465434730,-1024.54,9.841e-05,2]
[348359522,1736465434739,-500.0,9.841e-05,2]
[348359523,1736465434748,-500.0,9.841e-05,2]
[348359524,1736465434758,-591.54,9.841e-05,2]
[348359525,1736465434767,-500.0,9.841e-05,2]
[348359526,1736465434776,-500.0,9.841e-05,2]
[348359527,1736465434786,-500.0,9.841e-05,2]
[348359528,1736465434798,-882.85,9.841e-05,2]
[348359529,1736465434807,-500.0,9.841e-05,2]
[348359530,1736465434817,-500.0,9.841e-05,2]
[348359531,1736465434826,-500.0,9.841e-05,2]
[348359532,1736465434835,-947.96,9.841e-05,2]
[348359533,1736465434845,-500.0,9.841e-05,2]
[348359534,1736465434855,-500.0,9.841e-05,2]
[348359535,1736465434864,-511.47,9.841e-05,2]
[348359536,1736465434873,-671.22,9.841e-05,2]
[348359537,1736465434883,-500.0,9.841e-05,2]
[348359538,1736465434892,-500.0,9.841e-05,2]
[348359539,1736465434901,-500.0,9.841e-05,2]
[348359540,1736465434910,-500.0,9.841e-05,2]
[348359541,1736465434920,-500.0,9.841e-05,2]
[348359542,1736465434929,-500.0,9.841e-05,2]
[348359543,1736465434939,-500.0,9.841e-05,2]
[348359544,1736465434949,-948.9,9.841e-05,2]
[348359545,1736465434963,-500.0,9.841e-05,2]
[348359546,1736465434972,-500.0,9.841e-05,2]
[348359547,1736465434982,-561.91,9.841e-05,2]
[348359548,1736465434992,-500.0,9.841e-05,2]
[348359549,1736465435002,-500.0,9.841e-05,2]
[348359550,1736465435011,-500.0,9.841e-05,2]
[348359551,1736465435021,-500.0,9.841e-05,2]
[348359552,1736465435032,-884.51,9.841e-05,2]
[348359553,1736465435046,-824.97,9.841e-05,2]
[348359554,1736465435055,-500.0,9.841e-05,2]
[348359555,1736465435065,-500.0,9.841e-05,2]
[348359556,1736465435074,-668.87,9.841e-05,2]
[348359557,1736465435083,-530.13,9.841e-05,2]
[348359558,1736465435093,-887.31,9.841e-05,2]
[348359559,1736465435103,-735.77,9.841e-05,2]
[348359560,1736465435112,-2181.7,9.841e-05,2]
[348359561,1736465435122,-702.97,9.841e-05,2]
[348359562,1736465435132,-1009.24,9.841e-05,2]
[348359563,1736465435142,-500.0,9.841e-05,2]
[348359564,1736465435152,-500.0,9.841e-05,2]
[348359565,1736465435161,-3927.87,9.841e-05,2]
[348359566,1736465435171,-1522.26,9.841e-05,2]
[348359567,1736465435181,-694.19,9.841e-05,2]
[348359568,1736465435417,-3205.13,9.841e-05,2]
[348359569,1736465435432,-3804.52,9.841e-05,2]
[348359570,1736465435443,-500.0,9.841e-05,2]
[348359571,1736465435453,-8903.3,9.841e-05,2]
[348359572,1736465435463,-1531.49,9.841e-05,2]
[348359573,1736465435473,-785.58,9.841e-05,2]
[348359574,1736465435482,-500.0,9.841e-05,2]
[348359575,1736465435492,-524.02,9.841e-05,2]
[348359576,1736465435502,-553.8,9.841e-05,2]
[348359577,1736465435511,-500.0,9.841e-05,2]
[348359578,1736465435521,-500.0,9.841e-05,2]
[348359579,1736465435531,-500.0,9.841e-05,2]
[348359580,1736465435542,-2643.61,9.841e-05,2]
[348359581,1736465435553,-500.0,9.841e-05,2]
[348359582,1736465435563,-544.61910577,9.841e-05,2]
[348359583,1736465435573,-1241.67,9.841e-05,2]
[348359584,1736465435583,-500.0,9.841e-05,2]
[348359585,1736465435593,-707.65,9.841e-05,2]
[348359586,1736465435605,-657.97,9.841e-05,2]
[348359587,1736465435615,-523.77,9.841e-05,2]
[348359588,1736465435625,-705.38,9.841e-05,2]
[348359589,1736465435635,-1301.33,9.841e-05,2]
[348359590,1736465435644,-2092.43,9.841e-05,2]
[348359591,1736465435654,-500.0,9.841e-05,2]
[348359592,1736465435663,-2290.28,9.841e-05,2]
[348359593,1736465435673,-1028.03,9.841e-05,2]
[348359594,1736465435682,-1044.54,9.841e-05,2]
[348359595,1736465435692,-500.0,9.841e-05,2]
[348359596,1736465435702,-500.0,9.841e-05,2]
[348359597,1736465435711,-4266.34,9.841e-05,2]
[348359598,1736465435721,-597.2,9.841e-05,2]
[348359599,1736465435731,-814.98,9.841e-05,2]
[348359600,1736465435740,-1057.2,9.841e-05,2]
[348359601,1736465435749,-1241.27,9.841e-05,2]
[348359602,1736465435758,-1030.75,9.841e-05,2]
[348359603,1736465435768,-500.0,9.841e-05,2]
[348359604,1736465435778,-986.19,9.841e-05,2]
[348359605,1736465435787,-1350.34,9.841e-05,2]
[348359606,1736465435797,-843.27,9.841e-05,2]
[348359607,1736465435806,-710.42,9.841e-05,2]
[348359608,1736465435815,-500.0,9.841e-05,2]
[348359609,1736465435824,-540.63,9.841e-05,2]
[348359610,1736465435834,-1829.73,9.841e-05,2]
[348359611,1736465435843,-1294.19,9.841e-05,2]
[348359612,1736465435853,-500.0,9.841e-05,2]
[348359613,1736465435862,-500.0,9.841e-05,2]
[348359614,1736465435872,-2420.73,9.841e-05,2]
[348359615,1736465435881,-1074.64,9.841e-05,2]
[348359616,1736465435890,-1535.33,9.841e-05,2]
[348359617,1736465435900,-500.0,9.841e-05,2]
[348359618,1736465435909,-500.0,9.841e-05,2]
[348359619,1736465435919,-3718.34,9.841e-05,2]
[348359620,1736465435928,-685.71,9.841e-05,2]
[348359621,1736465435937,-560.72,9.841e-05,2]
[348359622,1736465435947,-500.0,9.841e-05,2]
[348359623,1736465435958,-859.75,9.841e-05,2]
[348359624,1736465435971,-501.18787739,9.841e-05,2]
[348359625,1736465435980,-934.85,9.841e-05,2]
[348359626,1736465435990,-500.0,9.841e-05,2]
[348359627,1736465436001,-686.79,9.841e-05,2]
[348359628,1736465436010,-500.0,9.841e-05,2]
[348359629,1736465436020,-712.05,9.841e-05,2]
[348359630,1736465436029,-510.86869541,9.841e-05,2]
[348359631,1736465436040,-820.8,9.841e-05,2]
[348359632,1736465436050,-500.0,9.841e-05,2]
[348359633,1736465436059,-500.0,9.841e-05,2]
[348359634,1736465436069,-500.0,9.841e-05,2]
[348359635,1736465436079,-500.0,9.841e-05,2]
[348359636,1736465436088,-500.0,9.841e-05,2]
[348359637,1736465436098,-500.0,9.841e-05,2]
[348359638,1736465436107,-500.0,9.841e-05,2]
[348359639,1736465436117,-500.0,9.841e-05,2]
[348359640,1736465436127,-764.35,9.841e-05,2]
[348359641,1736465436136,-500.0,9.842e-05,2]
[348359642,1736465436146,-500.0,9.842e-05,2]
[348359643,1736465436155,-500.0,9.842e-05,2]
[348359644,1736465436165,-500.0,9.842e-05,2]
[348359645,1736465436174,-500.0,9.842e-05,2]
[348359646,1736465436183,-500.0,9.842e-05,2]
[348359647,1736465436193,-500.0,9.842e-05,2]
[348359648,1736465436203,-500.0,9.842e-05,2]
[348359649,1736465436212,-500.0,9.842e-05,2]
[348359650,1736465436222,-500.0,9.842e-05,2]
[348359651,1736465436233,-500.0,9.842e-05,2]
[348359652,1736465436242,-500.0,9.842e-05,2]
[348359653,1736465436251,-500.0,9.842e-05,2]
[348359654,1736465436261,-500.0,9.842e-05,2]
[348359655,1736465436271,-500.0,9.842e-05,2]
[348359656,1736465436280,-500.0,9.842e-05,2]
[348359657,1736465436290,-500.0,9.842e-05,2]
[348359658,1736465436301,-500.0,9.842e-05,2]
[348359659,1736465436310,-500.0,9.842e-05,2]
[348359660,1736465436320,-500.0,9.842e-05,2]
[348359661,1736465436329,-500.0,9.842e-05,2]
[348359662,1736465436339,-500.0,9.842e-05,2]
[348359663,1736465436349,-500.0,9.842e-05,2]
[348359664,1736465436359,-500.0,9.842e-05,2]
[348359665,1736465436370,-500.0,9.842e-05,2]
[348359666,1736465436381,-500.0,9.842e-05,2]
[348359667,1736465436391,-500.0,9.842e-05,2]
[348359668,1736465436401,-500.0,9.842e-05,2]
[348359669,1736465436410,-500.0,9.842e-05,2]
[348359670,1736465436420,-500.0,9.842e-05,2]
[348359671,1736465436429,-500.0,9.842e-05,2]
[348359672,1736465436438,-500.0,9.842e-05,2]
[348359673,1736465436448,-500.0,9.842e-05,2]
[348359674,1736465436457,-500.0,9.842e-05,2]
[348359675,1736465436466,-500.0,9.842e-05,2]
[348359676,1736465436476,-500.0,9.842e-05,2]
[348359677,1736465436485,-500.0,9.842e-05,2]
[348359678,1736465436494,-500.0,9.842e-05,2]
[348359679,1736465436504,-574.60322273,9.842e-05,2]
[348359680,1736465436513,-500.0,9.842e-05,2]
[348359681,1736465436522,-500.0,9.842e-05,2]
[348359682,1736465436531,-500.0,9.842e-05,2]
[348359683,1736465436541,-500.0,9.842e-05,2]
[348359684,1736465436551,-500.0,9.842e-05,2]
[348359685,1736465436560,-500.0,9.842e-05,2]
[348359686,1736465436569,-500.0,9.842e-05,2]
[348359687,1736465436579,-500.0,9.842e-05,2]
[348359688,1736465436588,-500.0,9.842e-05,2]
[348359689,1736465436597,-500.0,9.842e-05,2]
[348359690,1736465436607,-500.0,9.842e-05,2]
[348359691,1736465436616,-500.0,9.842e-05,2]
[348359692,1736465436625,-500.0,9.842e-05,2]
[348359693,1736465436634,-500.0,9.842e-05,2]
[348359694,1736465436643,-500.0,9.842e-05,2]
[348359695,1736465436652,-500.0,9.842e-05,2]
[348359696,1736465436662,-500.0,9.842e-05,2]
[348359697,1736465436671,-500.0,9.842e-05,2]
[348359698,1736465436680,-500.0,9.842e-05,2]
[348359699,1736465436689,-500.0,9.842e-05,2]
[348359700,1736465436699,-500.0,9.842e-05,2]
[348359701,1736465436708,-500.0,9.842e-05,2]
[348359702,1736465436717,-500.0,9.842e-05,2]
[348359703,1736465436726,-500.0,9.842e-05,2]
[348359704,1736465436735,-500.0,9.842e-05,2]
[348359705,1736465436744,-292.7406841,9.842e-05,2]
[348359706,1736465436753,-500.0,9.842e-05,2]
[348359707,1736465436762,-500.0,9.842e-05,2]
[348359708,1736465436771,-500.0,9.842e-05,2]
[348359709,1736465436780,-500.0,9.842e-05,2]
[348359710,1736465436789,-500.0,9.842e-05,2]
[348359711,1736465436799,-500.0,9.842e-05,2]
[348359712,1736465436808,-500.0,9.842e-05,2]
[348359713,1736465436817,-500.0,9.842e-05,2]
[348359714,1736465436826,-500.0,9.842e-05,2]
[348359715,1736465436835,-500.0,9.842e-05,2]
[348359716,1736465436844,-150.0,9.842e-05,2]
[348359717,1736465436853,-500.0,9.842e-05,2]
[348359718,1736465436863,-500.0,9.842e-05,2]
[348359719,1736465436872,-500.0,9.842e-05,2]
[348359720,1736465436881,-500.0,9.842e-05,2]
[348359721,1736465436891,-500.0,9.842e-05,2]
[348359722,1736465436899,-500.0,9.842e-05,2]
[348359723,1736465436908,-500.0,9.842e-05,2]
[348359724,1736465436918,-500.0,9.842e-05,2]
[348359725,1736465436927,-500.0,9.842e-05,2]
[348359726,1736465436936,-500.0,9.842e-05,2]
[348359727,1736465436945,-504.45,9.842e-05,2]
[348359728,1736465436958,-500.0,9.842e-05,2]
[348359729,1736465436971,-500.0,9.842e-05,2]
[348359730,1736465436980,-500.0,9.842e-05,2]
[348359731,1736465436989,-500.0,9.842e-05,2]
[348359732,1736465437001,-500.0,9.842e-05,2]
[348359733,1736465437013,-500.0,9.842e-05,2]
[348359734,1736465437024,-500.0,9.842e-05,2]
[348359735,1736465437035,-500.0,9.842e-05,2]
[348359736,1736465437046,-500.0,9.842e-05,2]
[348359737,1736465437055,-500.0,9.842e-05,2]
[348359738,1736465437065,-544.09567914,9.842e-05,2]
[348359739,1736465437074,-500.0,9.842e-05,2]
[348359740,1736465437084,-500.0,9.842e-05,2]
[348359741,1736465437093,-500.0,9.842e-05,2]
[348359742,1736465437102,-500.0,9.842e-05,2]
[348359743,1736465437112,-564.5,9.842e-05,2]
[348359744,1736465437122,-500.0,9.842e-05,2]
[348359745,1736465437135,-500.0,9.842e-05,2]
[348359746,1736465437147,-648.53,9.842e-05,2]
[348359747,1736465437157,-846.38,9.842e-05,2]
[348359748,1736465437167,-529.2,9.842e-05,2]
[348359749,1736465437179,-500.0,9.842e-05,2]
[348359750,1736465437188,-500.0,9.842e-05,2]
[348359751,1736465437198,-500.0,9.842e-05,2]
[348359752,1736465437207,-1047.89,9.842e-05,2]
[348359753,1736465437218,-531.75,9.842e-05,2]
[348359754,1736465437227,-966.81,9.842e-05,2]
[348359755,1736465437238,-500.0,9.842e-05,2]
[348359756,1736465437248,-1253.63,9.842e-05,2]
[348359757,1736465437258,-500.0,9.842e-05,2]
[348359758,1736465437268,-521.88,9.842e-05,2]
[348359759,1736465437277,-500.0,9.842e-05,2]
[348359760,1736465437287,-500.0,9.842e-05,2]
[348359761,1736465437297,-710.4,9.842e-05,2]
[348359762,1736465437306,-500.0,9.842e-05,2]
[348359763,1736465437317,-500.0,9.842e-05,2]
[348359764,1736465437327,-500.0,9.842e-05,2]
[348359765,1736465437337,-500.0,9.842e-05,2]
[348359766,1736465437347,-200.0,9.973e-05,2]
[348359767,1736465437358,-7100.71848288,9.974e-05,2]
[348359768,1736465437367,-255.0,9.975e-05,2]
[348359769,1736465437377,-200.0,9.977e-05,2]
[348359770,1736465437387,-7100.71848288,9.978e-05,2]
[348359771,1736465437397,-55764.81465478,9.979e-05,2]
[348359772,1736465437406,-42476.41869589,9.984e-05,2]
[348359773,1736465437432,-3700.0,9.984e-05,2]
[348359774,1736465437459,-541.37242431,9.984e-05,2]
[348359775,1736465437479,-9047.02353458,9.984e-05,2]
[348359776,1736465437488,-7100.71848288,9.985e-05,2]
[348359777,1736465437499,-7100.71848288,9.986e-05,2]
[348359778,1736465437508,-55764.81465478,9.991e-05,2]
[348359779,1736465437517,-55764.81465478,9.991e-05,2]
[348359780,1736465437527,-55764.81465478,9.993e-05,2]
[348359781,1736465437536,-7100.71848288,9.993e-05,2]
[348359782,1736465437546,-200.0,9.993e-05,2]
[348359783,1736465437556,-55764.81465478,9.993e-05,2]
[348359784,1736465437565,-744.81,9.995e-05,2]
[348359785,1736465437574,-500.0,9.996e-05,2]
[348359786,1736465437583,-500.0,9.996e-05,2]
[348359787,1736465437592,-500.0,9.996e-05,2]
[348359788,1736465437601,-7100.71848288,9.997e-05,2]
[348359789,1736465437610,-165.1,0.0001,2]
[348359790,1736465437620,-351890.39216668,0.0001,2]
[348359791,1736465437632,-1014.1,0.0001,2]
[348359792,1736465437643,-2326.76664144,0.0001,2]
[348359793,1736465437703,-1652.66,9.84e-05,2]
[348359794,1736465437713,-500.0,9.84e-05,2]
[348359795,1736465437722,-17122.81053154,0.0001,2]
[348359796,1736465437734,-10468.8,0.0001,2]
[348359797,1736465437745,-2097.72946846,0.0001,2]
[348359819,1736465439004,-758.51152843,9.388e-05,2]
[348359824,1736465439036,-3564.31847157,9.388e-05,2]
[348359827,1736465439045,-2944.64,9.84e-05,2]
[348359829,1736465439055,-500.0,9.84e-05,2]
[348359830,1736465439273,-500.0,9.841e-05,2]
[348359831,1736465439284,-319.54606919,9.841e-05,2]
[348359832,1736465439293,-986372.73395802,0.0001,2]
[348359833,1736465439304,-3967017.8274108,0.0001,2]
[348359834,1736465439315,-5511.78573928,0.0001,2]
[348359836,1736465440417,-500.0,9.84e-05,2]
[348359837,1736465440426,-2998.08890085,0.0001,2]
[348359838,1736465440438,-1399.79399091,0.0001,2]
[348359841,1736465440465,-260.51,0.0001,2]
[348359842,1736465440476,-2038.6,0.0001,2]
[348359843,1736465440610,-300.0,0.0001,2]
[348359844,1736465440621,-1419.99639479,0.0001,2]
[348359845,1736465440632,-6692.67651458,0.0001,2]
[348359846,1736465440650,-2306.41831059,0.0001,2]
[348359847,1736465440790,-1000.0,0.0001,2]
[348359848,1736465440834,-2546.11989511,0.0001,2]
[348359849,1736465440877,-14610.89293982,0.0001,2]
[348359850,1736465440921,-20051.57402163,0.0001,2]
[348359853,1736465443437,-365.545,9.84e-05,2]
[348359854,1736465443449,-134.455,9.84e-05,2]
[348359855,1736465443459,-337.04100013,9.84e-05,2]
[348359856,1736465443597,-162.95899987,9.84e-05,2]
[348359857,1736465443608,-512.46595513,9.84e-05,2]
[348359858,1736465443622,-476.87404487,9.84e-05,2]
[348359859,1736465443631,-628.15,9.841e-05,2]
[348359860,1736465443641,-18486.53249107,0.0001,2]
[348359861,1736465443654,-2010.44552096,0.0001,2]
[348359862,1736465443665,-60309.06773031,0.0001,2]
[348359863,1736465443683,-10424.08020376,0.0001,2]
[348359864,1736465443693,-7227.03868324,0.0001,2]
[348359865,1736465443705,-19691.93639048,0.0001,2]
[348359866,1736465443714,-217.87442388,0.0001,2]
[348359867,1736465443723,-217.87442372,0.0001,2]
[348359868,1736465443733,-217.87442372,0.0001,2]
[348359869,1736465443743,-217.87442372,0.0001,2]
[348359870,1736465443752,-217.87442372,0.0001,2]
[348359871,1736465443761,-217.87442372,0.0001,2]
[348359872,1736465443770,-217.87442372,0.0001,2]
[348359873,1736465443779,-217.87442372,0.0001,2]
[348359874,1736465443789,-217.87442372,0.0001,2]
[348359875,1736465443801,-217.87442372,0.0001,2]
[348359876,1736465443810,-217.87442372,0.0001,2]
[348359877,1736465443820,-182.17861886,0.0001,2]
[348359878,1736465443830,-217.87442372,0.0001,2]
[348359879,1736465443839,-217.87442372,0.0001,2]
[348359880,1736465443849,-217.87442372,0.0001,2]
[348359881,1736465443859,-217.87442372,0.0001,2]
[348359882,1736465443868,-217.87442372,0.0001,2]
[348359883,1736465443878,-217.87442372,0.0001,2]
[348359884,1736465443888,-217.87442372,0.0001,2]
[348359885,1736465443898,-217.87442372,0.0001,2]
[348359886,1736465443907,-217.87442372,0.0001,2]
[348359887,1736465443918,-502.18986618,0.0001,2]
[348359888,1736465443927,-502.18986618,0.0001,2]
[348359889,1736465443937,-808.89505515,0.0001,2]
[348359890,1736465443949,-675.48533111,0.0001,2]
[348359891,1736465443962,-201.84475052,0.0001,2]
[348359892,1736465443972,-201.84475039,0.0001,2]
[348359893,1736465443982,-201.84475039,0.0001,2]
[348359894,1736465443991,-201.84475039,0.0001,2]
[348359895,1736465444001,-201.84475039,0.0001,2]
[348359896,1736465444011,-201.84475039,0.0001,2]
[348359897,1736465444021,-201.84475039,0.0001005,2]
[348359898,1736465444031,-160.0,0.00010082,2]
[348359899,1736465444043,-502.18986618,0.00010103,2]
[348359900,1736465444055,-500.0,0.00010113,2]
[348359901,1736465444065,-500.0,0.00010113,2]
[348359902,1736465444075,-500.0,0.00010113,2]
[348359903,1736465444084,-500.0,0.00010113,2]
[348359904,1736465444094,-500.0,0.00010113,2]
[348359905,1736465444103,-500.0,0.00010113,2]
[348359906,1736465444112,-500.0,0.00010113,2]
[348359907,1736465444122,-500.0,0.00010113,2]
[348359908,1736465444133,-500.0,0.00010113,2]
[348359909,1736465444143,-500.0,0.00010113,2]
[348359910,1736465444152,-500.0,0.00010113,2]
[348359911,1736465444161,-500.0,0.00010113,2]
[348359912,1736465444171,-500.0,0.00010113,2]
[348359913,1736465444180,-500.0,0.00010113,2]
[348359914,1736465444189,-500.0,0.00010113,2]
[348359915,1736465444199,-500.0,0.00010113,2]
[348359916,1736465444208,-500.0,0.00010113,2]
[348359917,1736465444218,-500.0,0.00010113,2]
[348359918,1736465444227,-500.0,0.00010113,2]
[348359919,1736465444236,-500.0,0.00010113,2]
[348359920,1736465444246,-500.0,0.00010113,2]
[348359921,1736465444255,-500.0,0.00010113,2]
[348359922,1736465444264,-500.0,0.00010113,2]
[348359923,1736465444273,-500.0,0.00010113,2]
[348359924,1736465444283,-500.0,0.00010113,2]
[348359925,1736465444292,-500.0,0.00010113,2]
[348359926,1736465444302,-500.0,0.00010113,2]
[348359927,1736465444312,-500.0,0.00010113,2]
[348359928,1736465444322,-500.0,0.00010113,2]
[348359929,1736465444331,-500.0,0.00010113,2]
[348359930,1736465444341,-500.0,0.00010113,2]
[348359931,1736465444351,-500.0,0.00010113,2]
[348359932,1736465444361,-500.0,0.00010113,2]
[348359933,1736465444370,-500.0,0.00010113,2]
[348359934,1736465444380,-500.0,0.00010113,2]
[348359935,1736465444390,-500.0,0.00010113,2]
[348359936,1736465444399,-500.0,0.00010113,2]
[348359937,1736465444409,-500.0,0.00010113,2]
[348359938,1736465444418,-500.0,0.00010113,2]
[348359939,1736465444428,-500.0,0.00010113,2]
[348359940,1736465444438,-500.0,0.00010113,2]
[348359941,1736465444447,-500.0,0.00010113,2]
[348359942,1736465444456,-500.0,0.00010113,2]
[348359943,1736465444466,-500.0,0.00010113,2]
[348359944,1736465444475,-500.0,0.00010113,2]
[348359945,1736465444485,-500.0,0.00010113,2]
[348359946,1736465444494,-500.0,0.00010113,2]
[348359947,1736465444504,-500.0,0.00010113,2]
[348359948,1736465444513,-500.0,0.00010113,2]
[348359949,1736465444523,-500.0,0.00010113,2]
[348359950,1736465444533,-500.0,0.00010113,2]
[348359951,1736465444543,-500.0,0.00010113,2]
[348359952,1736465444553,-500.0,0.00010113,2]
[348359953,1736465444562,-500.0,0.00010113,2]
[348359954,1736465444572,-500.0,0.00010113,2]
[348359955,1736465444582,-500.0,0.00010113,2]
[348359956,1736465444592,-500.0,0.00010113,2]
[348359957,1736465444601,-500.0,0.00010113,2]
[348359958,1736465444610,-500.0,0.00010113,2]
[348359959,1736465444619,-500.0,0.00010113,2]
[348359960,1736465444629,-500.0,0.00010113,2]
[348359961,1736465444639,-500.0,0.00010113,2]
[348359962,1736465444648,-500.0,0.00010113,2]
[348359963,1736465444658,-500.0,0.00010113,2]
[348359964,1736465444668,-500.0,0.00010113,2]
[348359965,1736465444677,-428.40466813,0.00010113,2]
[348359966,1736465444692,-71.59533187,0.00010113,2]
[348359967,1736465444702,-500.0,0.00010113,2]
[348359968,1736465444711,-500.0,0.00010113,2]
[348359969,1736465444721,-500.0,0.00010113,2]
[348359970,1736465444730,-456.00466788,0.00010113,2]
[348359971,1736465444742,-43.99533212,0.00010113,2]
[348359972,1736465444751,-499.24466789,0.00010113,2]
[348359973,1736465444763,-0.75533211,0.00010113,2]
[348359974,1736465444772,-500.0,0.00010113,2]
[348359975,1736465444781,-500.72218049,0.00010113,2]
[348359976,1736465444791,-500.0,0.00010113,2]
[348359977,1736465444800,-500.0,0.00010113,2]
[348359978,1736465444809,-500.0,0.00010113,2]
[348359979,1736465444818,-233.4224874,0.00010113,2]
[348359983,1736465446632,-522.66,9.84e-05,2]
[348359984,1736465446641,-266.5775126,0.00010113,2]
[348359985,1736465446651,-225.4124874,0.00010113,2]
[348359986,1736465446664,-274.5875126,0.00010113,2]
[348359987,1736465446674,-500.0,0.00010113,2]
[348359988,1736465446686,-500.0,0.00010113,2]
[348359989,1736465446697,-500.0,0.00010113,2]
[348359990,1736465446707,-500.0,0.00010113,2]
[348359991,1736465446720,-500.0,0.00010113,2]
[348359992,1736465446730,-500.0,0.00010113,2]
[348359993,1736465446741,-500.0,0.00010113,2]
[348359994,1736465446750,-500.0,0.00010113,2]
[348359995,1736465446760,-500.0,0.00010113,2]
[348359996,1736465446770,-500.0,0.00010113,2]
[348359997,1736465446779,-500.0,0.00010113,2]
[348359998,1736465446789,-500.0,0.00010113,2]
[348359999,1736465446798,-500.0,0.00010113,2]
[348360000,1736465446808,-555.9,0.00010113,2]
[348360001,1736465446818,-500.0,0.00010113,2]
[348360002,1736465446828,-500.0,0.00010113,2]
[348360003,1736465446839,-500.0,0.00010113,2]
[348360004,1736465446850,-500.0,0.00010113,2]